bitfinex-derivatives/quotes_BTCF0:USTF0_20250910
["timestamp","ask_amount","ask_price","bid_price","bid_amount"]
[1757516180508,1.88191089,114030.0,114020.0,0.01344]
[1757516184716,0.94093484,114030.0,114020.0,0.03674]
[1757516184911,1.76581484,114030.0,114020.0,0.03674]
[1757516186120,1.76581484,114030.0,114020.0,0.01344]
[1757516186317,1.88219089,114030.0,114020.0,0.01344]
[1757516188017,2.24856694,114030.0,114010.0,0.0133]
[1757516188319,0.70992815,114020.0,114010.0,0.0133]
[1757516188511,0.73041357,114020.0,114000.0,0.0133]
[1757516188714,1.4185921,114010.0,114000.0,0.0133]
[1757516189012,1.43907752,114010.0,114000.0,0.0133]
[1757516190222,1.43907752,114010.0,114000.0,0.0143]
[1757516190422,0.61403752,114010.0,114000.0,0.0143]
[1757516190624,1.43871752,114010.0,114000.0,0.0133]
[1757516191318,1.43871752,114010.0,114000.0,0.0143]
[1757516192525,1.43871752,114010.0,114000.0,0.001]
[1757516192526,1.68871752,114010.0,114000.0,0.001]
[1757516193927,1.68871752,114010.0,113990.0,0.0133]
[1757516194226,1.4176321,114000.0,113990.0,0.0133]
[1757516194415,1.43811752,114000.0,113990.0,0.0133]
[1757516194616,1.43767752,114000.0,113990.0,0.0133]
[1757516195331,1.4171921,114000.0,113990.0,0.0133]
[1757516195531,1.43765895,114000.0,113990.0,0.0133]
[1757516195827,1.43761895,114000.0,113990.0,0.0133]
[1757516196421,1.43861895,114000.0,113990.0,0.0133]
[1757516197733,1.554995,114000.0,113980.0,0.01314]
[1757516198027,0.5935521,113990.0,113980.0,0.01314]
[1757516198229,0.61401895,113990.0,113980.0,0.01314]
[1757516198628,1.43693895,113990.0,113980.0,0.01314]
[1757516199533,1.43693895,113990.0,113970.0,0.01314]
[1757516199721,0.5935521,113980.0,113970.0,0.01314]
[1757516201432,0.5935521,113980.0,113970.0,0.01514]
[1757516201823,1.4161121,113980.0,113970.0,0.01514]
[1757516202029,1.48697344,113980.0,113970.0,0.01514]
[1757516202528,1.48697344,113980.0,113970.0,0.01614]
[1757516203033,1.48697344,113980.0,113970.0,0.01514]
[1757516203531,1.48697344,113980.0,113970.0,0.01414]
[1757516203931,1.48697344,113980.0,113970.0,0.001]
[1757516206036,1.48697344,113980.0,113970.0,0.01486]
[1757516206527,1.50737152,113980.0,113970.0,0.01486]
[1757516208430,1.50737152,113980.0,113970.0,0.001]
[1757516208636,1.87374757,113980.0,113970.0,0.001]
[1757516208932,1.05118757,113980.0,113970.0,0.001]
[1757516209235,1.87302757,113980.0,113970.0,0.001]
[1757516211231,1.87302757,113980.0,113960.0,0.01386]
[1757516211430,0.5935521,113970.0,113960.0,0.01386]
[1757516211632,0.61395018,113970.0,113960.0,0.01386]
[1757516212125,0.61395018,113970.0,113950.0,0.01314]
[1757516212332,1.4151121,113960.0,113950.0,0.01314]
[1757516213534,0.5935521,113960.0,113950.0,0.01314]
[1757516213838,1.4161521,113960.0,113950.0,0.01314]
[1757516214041,0.3618,113960.0,113950.0,0.01314]
[1757516214339,1.4162721,113960.0,113950.0,0.03471]
[1757516216341,1.43667626,113960.0,113950.0,0.03471]
[1757516216641,0.61495626,113960.0,113950.0,0.03471]
[1757516216942,1.44547889,113960.0,113950.0,0.03471]
[1757516217440,0.62383889,113960.0,113950.0,0.03471]
[1757516217741,1.44531889,113960.0,113950.0,0.03471]
[1757516219151,1.44499889,113960.0,113950.0,0.03471]
[1757516219655,0.62383889,113960.0,113950.0,0.03471]
[1757516219855,1.44499889,113960.0,113950.0,0.01314]
[1757516220056,1.44499889,113960.0,113950.0,0.03471]
[1757516220255,1.44483889,113960.0,113950.0,0.03471]
[1757516221554,1.44543889,113960.0,113950.0,0.03471]
[1757516221951,0.62383889,113960.0,113950.0,0.03471]
[1757516222154,0.38220416,113960.0,113950.0,0.40108605]
[1757516222454,0.3618,113960.0,113950.0,0.40108605]
[1757516222649,0.37076656,113960.0,113950.0,0.40108605]
[1757516222850,0.48714261,113960.0,113950.0,0.40108605]
[1757516223260,0.37076656,113960.0,113950.0,0.40108605]
[1757516223458,0.48714261,113960.0,113950.0,0.40108605]
[1757516223960,0.50756425,113960.0,113950.0,0.28471]
[1757516224549,0.6239403,113960.0,113950.0,0.03471]
[1757516224759,0.6239403,113960.0,113950.0,0.01314]
[1757516227762,1.01053291,113960.0,113950.0,0.01314]
[1757516228162,0.89415686,113960.0,113950.0,0.01314]
[1757516228366,1.01053291,113960.0,113940.0,0.01386]
[1757516228568,1.4147121,113950.0,113940.0,0.01386]
[1757516228754,1.43513374,113950.0,113940.0,0.01386]
[1757516230962,1.43613374,113950.0,113940.0,0.01386]
[1757516234869,1.68613374,113950.0,113940.0,0.01386]
[1757516236569,1.68613374,113950.0,113930.0,0.01386]
[1757516236764,0.70992815,113940.0,113930.0,0.01307]
[1757516236965,0.36954979,113940.0,113930.0,0.01307]
[1757516237263,1.09114979,113940.0,113930.0,0.01307]
[1757516237770,0.97477374,113940.0,113930.0,0.01307]
[1757516237972,1.04534405,113940.0,113930.0,0.01307]
[1757516239970,1.1626603,113940.0,113930.0,0.01307]
[1757516240172,1.04628425,113940.0,113930.0,0.01307]
[1757516240378,2.16202129,113940.0,113930.0,0.01307]
[1757516240565,1.33810129,113940.0,113930.0,0.01307]
[1757516241069,2.16186129,113940.0,113930.0,0.01307]
[1757516247179,1.33810129,113940.0,113930.0,0.01307]
[1757516247373,1.98592491,113940.0,113930.0,0.01307]
[1757516247573,1.63621215,113940.0,113930.0,0.01307]
[1757516247777,1.98592491,113940.0,113930.0,0.01307]
[1757516248169,2.16078129,113940.0,113930.0,0.01307]
[1757516250281,0.81353215,113940.0,113930.0,0.03464]
[1757516250476,1.98748491,113940.0,113930.0,0.03464]
[1757516251188,1.16324491,113940.0,113930.0,0.03464]
[1757516251487,0.96802669,113940.0,113930.0,0.46826638]
[1757516251785,1.96812307,113940.0,113930.0,0.46826638]
[1757516251987,1.98847505,113940.0,113930.0,0.04341]
[1757516252192,2.14297945,113940.0,113930.0,0.02184]
[1757516252380,2.16333235,113940.0,113930.0,0.02184]
[1757516253491,1.98847597,113940.0,113930.0,0.02184]
[1757516254090,1.98847257,113940.0,113930.0,0.02184]
[1757516254392,1.63875981,113940.0,113930.0,0.04341]
[1757516254588,1.98847257,113940.0,113930.0,0.02184]
[1757516255280,1.63875981,113940.0,113930.0,0.02184]
[1757516255684,1.98847257,113940.0,113930.0,0.02184]
[1757516255984,2.16332895,113940.0,113930.0,0.02184]
[1757516256893,2.16334133,113940.0,113930.0,0.02184]
[1757516257392,1.63877219,113940.0,113930.0,0.02184]
[1757516257687,1.98848495,113940.0,113930.0,0.02184]
[1757516258285,1.99440495,113940.0,113930.0,0.04341]
[1757516258685,1.99440495,113940.0,113930.0,0.02184]
[1757516258988,1.16324495,113940.0,113930.0,0.04486]
[1757516259186,1.99440495,113940.0,113930.0,0.04486]
[1757516259895,1.99440495,113940.0,113930.0,0.02184]
[1757516260487,2.16926133,113940.0,113930.0,0.02184]
[1757516261086,1.99412495,113940.0,113930.0,0.04486]
[1757516261989,1.99412495,113940.0,113930.0,0.02184]
[1757516262191,1.99344495,113940.0,113930.0,0.04486]
[1757516262582,2.16830133,113940.0,113930.0,0.02184]
[1757516267802,1.33810133,113940.0,113930.0,0.02184]
[1757516267994,0.81353219,113940.0,113930.0,0.04486]
[1757516268197,1.99288495,113940.0,113930.0,0.04486]
[1757516269704,1.64317219,113940.0,113930.0,0.04486]
[1757516269902,1.99288495,113940.0,113930.0,0.04486]
[1757516270796,2.16774133,113940.0,113930.0,0.04486]
[1757516270995,1.33810133,113940.0,113930.0,0.04486]
[1757516271198,1.99268495,113940.0,113930.0,0.04486]
[1757516272207,2.16754133,113940.0,113930.0,0.04486]
[1757516272805,1.99268495,113940.0,113930.0,0.04486]
[1757516273294,1.64297219,113940.0,113930.0,0.04486]
[1757516273492,1.99268495,113940.0,113930.0,0.04486]
[1757516274319,1.64297219,113940.0,113930.0,0.04486]
[1757516274616,1.99268495,113940.0,113930.0,0.04486]
[1757516275016,1.64297219,113940.0,113930.0,0.04486]
[1757516275315,1.99160495,113940.0,113930.0,0.04486]
[1757516275618,1.64189219,113940.0,113930.0,0.04486]
[1757516275815,1.99160495,113940.0,113930.0,0.04486]
[1757516280217,1.99056495,113940.0,113930.0,0.04486]
[1757516280420,1.64085219,113940.0,113930.0,0.04486]
[1757516280622,1.99056495,113940.0,113930.0,0.04486]
[1757516280821,2.16542133,113940.0,113930.0,0.02184]
[1757516281718,1.64085219,113940.0,113930.0,0.02184]
[1757516281921,2.16542133,113940.0,113930.0,0.04486]
[1757516283114,2.16542133,113940.0,113930.0,0.02184]
[1757516285016,1.33810133,113940.0,113930.0,0.02184]
[1757516285220,2.16410133,113940.0,113930.0,0.02184]
[1757516287522,1.33810133,113940.0,113930.0,0.02184]
[1757516287724,2.16334133,113940.0,113930.0,0.02184]
[1757516287925,1.33810133,113940.0,113930.0,0.02184]
[1757516288127,2.16322133,113940.0,113930.0,0.02184]
[1757516289422,2.16322133,113940.0,113930.0,0.00877]
[1757516289727,2.46031826,113940.0,113920.0,0.01386]
[1757516289921,0.71051276,113930.0,113920.0,0.037]
[1757516290121,1.55579464,113930.0,113920.0,0.037]
[1757516290724,1.38077826,113930.0,113920.0,0.037]
[1757516290926,1.55563464,113930.0,113920.0,0.037]
[1757516291627,1.55563464,113930.0,113920.0,0.038]
[1757516292025,0.73087464,113930.0,113920.0,0.038]
[1757516292226,1.55527464,113930.0,113920.0,0.038]
[1757516292428,0.73087464,113930.0,113920.0,0.038]
[1757516292629,1.55507464,113930.0,113920.0,0.038]
[1757516292927,0.73087464,113930.0,113920.0,0.038]
[1757516293132,1.55507464,113930.0,113920.0,0.038]
[1757516293334,1.38021826,113930.0,113920.0,0.288]
[1757516293723,1.55507464,113930.0,113920.0,0.288]
[1757516294125,1.38001826,113930.0,113920.0,0.288]
[1757516294928,0.38116188,113930.0,113920.0,0.288]
[1757516295130,0.3608,113930.0,113920.0,0.63771276]
[1757516295435,0.3608,113930.0,113920.0,0.70073052]
[1757516297228,0.3608,113930.0,113920.0,0.77062527]
[1757516297633,0.3608,113940.0,113930.0,0.03585]
[1757516297827,0.3608,113940.0,113930.0,0.2738146]
[1757516298336,0.3608,113940.0,113930.0,0.03585]
[1757516298534,0.3608,113940.0,113930.0,0.46070638]
[1757516298931,0.53565638,113950.0,113940.0,0.03585]
[1757516299133,1.36025638,113950.0,113940.0,0.21070638]
[1757516299938,0.53565638,113950.0,113940.0,0.21070638]
[1757516300233,1.36345638,113950.0,113940.0,0.21070638]
[1757516300627,1.36445638,113950.0,113940.0,0.03585]
[1757516300834,1.36445638,113950.0,113940.0,0.21070638]
[1757516301138,1.1896,113950.0,113940.0,0.21070638]
[1757516301338,1.36445638,113950.0,113940.0,0.03585]
[1757516301531,1.1896,113950.0,113940.0,0.03585]
[1757516301834,1.36445638,113950.0,113940.0,0.03585]
[1757516302343,1.1896,113950.0,113940.0,0.03585]
[1757516302537,1.30611773,113950.0,113940.0,0.03585]
[1757516303443,1.1896,113950.0,113940.0,0.03585]
[1757516303634,1.30611773,113950.0,113940.0,0.03585]
[1757516304340,1.1896,113950.0,113940.0,0.03585]
[1757516304540,1.30611773,113950.0,113940.0,0.03585]
[1757516304740,1.1896,113950.0,113940.0,0.03585]
[1757516304932,1.30611773,113950.0,113940.0,0.03585]
[1757516306044,1.1896,113950.0,113940.0,0.03585]
[1757516306341,1.30611773,113950.0,113940.0,0.03585]
[1757516307738,0.3648,113950.0,113940.0,0.03585]
[1757516308038,1.30451773,113950.0,113940.0,0.15236773]
[1757516308341,1.188,113950.0,113940.0,0.15236773]
[1757516308541,1.30451773,113950.0,113940.0,0.15236773]
[1757516309048,1.188,113950.0,113940.0,0.03585]
[1757516309339,1.30451773,113950.0,113940.0,0.03585]
[1757516309642,1.188,113950.0,113940.0,0.03585]
[1757516309842,1.30451773,113950.0,113940.0,0.03585]
[1757516310541,1.188,113950.0,113940.0,0.03585]
[1757516310741,1.30451773,113950.0,113940.0,0.03585]
[1757516312443,0.48131773,113950.0,113940.0,0.03585]
[1757516312745,1.30383773,113950.0,113940.0,0.03585]
[1757516313541,1.30463773,113950.0,113940.0,0.03585]
[1757516313746,1.30459773,113950.0,113940.0,0.03585]
[1757516313935,1.30451773,113950.0,113940.0,0.03585]
[1757516314139,0.48131773,113950.0,113940.0,0.03585]
[1757516314338,1.30435773,113950.0,113940.0,0.03585]
[1757516314943,0.48131773,113950.0,113940.0,0.03585]
[1757516315147,1.30435773,113950.0,113940.0,0.03585]
[1757516315444,1.55435773,113950.0,113940.0,0.03585]
[1757516315639,1.67087546,113950.0,113940.0,0.01271]
[1757516316040,1.67087546,113950.0,113940.0,0.03585]
[1757516316344,1.55435773,113950.0,113940.0,0.03585]
[1757516317749,1.67087546,113950.0,113940.0,0.01271]
[1757516318041,1.69095694,113950.0,113940.0,0.01271]
[1757516318237,1.71163333,113950.0,113940.0,0.01271]
[1757516318643,1.71163333,113950.0,113930.0,0.02148]
[1757516318844,0.59383546,113940.0,113930.0,0.02148]
[1757516319150,1.41691546,113940.0,113930.0,0.02148]
[1757516319747,1.41691546,113940.0,113930.0,0.04287]
[1757516320246,1.50837268,113940.0,113930.0,0.04287]
[1757516322052,1.50837268,113940.0,113930.0,0.02148]
[1757516322348,1.50937268,113940.0,113930.0,0.02148]
[1757516322641,0.68629268,113940.0,113930.0,0.02148]
[1757516322860,1.50857268,113940.0,113930.0,0.02148]
[1757516324550,1.50859797,113940.0,113930.0,0.02148]
[1757516325548,1.50819797,113940.0,113930.0,0.02148]
[1757516328351,1.50763797,113940.0,113930.0,0.02148]
[1757516329657,0.45328251,113940.0,113930.0,0.04287]
[1757516329855,1.50711797,113940.0,113930.0,0.04287]
[1757516330159,0.54909163,113940.0,113930.0,0.04287]
[1757516330859,1.37001163,113940.0,113930.0,0.04287]
[1757516331054,1.2534939,113940.0,113930.0,0.04287]
[1757516331258,1.37001163,113940.0,113930.0,0.04287]
[1757516333559,1.48652936,113940.0,113930.0,0.04287]
[1757516333950,1.50723171,113940.0,113930.0,0.04287]
[1757516335155,0.68631171,113940.0,113930.0,0.04287]
[1757516335362,1.50751171,113940.0,113930.0,0.04287]
[1757516336662,0.68631171,113940.0,113930.0,0.04287]
[1757516336863,1.50723171,113940.0,113930.0,0.04287]
[1757516339251,0.45327625,113940.0,113930.0,0.04287]
[1757516339451,0.38250235,113940.0,113930.0,0.29287]
[1757516339655,1.1826,113940.0,113930.0,0.40938773]
[1757516339862,1.29911773,113940.0,113930.0,0.40938773]
[1757516340162,0.3618,113940.0,113930.0,0.40938773]
[1757516341763,0.001,113940.0,113930.0,0.40061773]
[1757516342161,0.3618,113940.0,113930.0,0.40061773]
[1757516343066,0.3618,113940.0,113930.0,0.40938773]
[1757516343757,0.3618,113940.0,113930.0,0.47249595]
[1757516344267,0.3618,113940.0,113930.0,0.48110022]
[1757516344669,0.3618,113940.0,113930.0,0.47249595]
[1757516344870,0.001,113940.0,113930.0,0.47249595]
[1757516345361,0.3618,113940.0,113930.0,0.47249595]
[1757516345661,0.001,113940.0,113930.0,0.47249595]
[1757516345868,0.3618,113940.0,113930.0,0.47249595]
[1757516346065,0.001,113940.0,113930.0,0.47249595]
[1757516348261,0.001,113940.0,113930.0,0.54258111]
[1757516348867,0.001,113940.0,113930.0,0.42606338]
[1757516349070,0.001,113940.0,113930.0,0.54258111]
[1757516350270,0.001,113940.0,113930.0,0.47947289]
[1757516350867,0.38088148,113950.0,113940.0,0.0129]
[1757516350868,0.3608,113950.0,113940.0,0.0129]
[1757516351070,0.3608,113950.0,113940.0,0.28681649]
[1757516351970,0.3608,113950.0,113940.0,1.10749649]
[1757516352171,0.3638,113950.0,113940.0,1.10749649]
[1757516352573,0.3648,113950.0,113940.0,1.10749649]
[1757516353074,0.3648,113950.0,113940.0,0.28681649]
[1757516353276,0.3648,113950.0,113940.0,1.10745649]
[1757516353776,0.3648,113950.0,113940.0,0.87442103]
[1757516354070,0.3648,113950.0,113940.0,0.99093876]
[1757516355080,0.3648,113950.0,113940.0,0.17029876]
[1757516355269,0.3648,113950.0,113940.0,0.99089876]
[1757516355874,0.3648,113950.0,113940.0,0.87438103]
[1757516356080,0.004,113950.0,113940.0,0.99089876]
[1757516356473,0.004,113950.0,113940.0,1.10741649]
[1757516357176,0.004,113950.0,113940.0,1.18748925]
[1757516357373,0.3608,113960.0,113950.0,0.0129]
[1757516357677,0.3608,113960.0,113950.0,0.15244773]
[1757516358576,0.3618,113960.0,113950.0,0.15244773]
[1757516359078,0.3638,113960.0,113950.0,0.15244773]
[1757516359280,0.003,113960.0,113950.0,0.03593]
[1757516359481,0.3638,113960.0,113950.0,0.15244773]
[1757516359676,0.3638,113960.0,113950.0,0.03593]
[1757516359883,0.48031773,113960.0,113950.0,0.03593]
[1757516360774,0.48031773,113960.0,113950.0,0.15244773]
[1757516361873,0.48031773,113960.0,113950.0,0.03593]
[1757516362078,0.48031773,113960.0,113950.0,0.15244773]
[1757516362481,0.3638,113960.0,113950.0,0.15244773]
[1757516364283,0.3638,113960.0,113950.0,0.03593]
[1757516364484,0.53852289,113960.0,113950.0,0.21065289]
[1757516365983,0.3638,113960.0,113950.0,0.21065289]
[1757516366283,0.53852289,113960.0,113950.0,0.21065289]
[1757516369383,0.53852289,113960.0,113950.0,0.21942289]
[1757516369788,0.3638,113960.0,113950.0,0.21942289]
[1757516369984,0.96324578,113960.0,113950.0,0.0447]
[1757516372683,0.6138,113960.0,113950.0,0.0447]
[1757516373086,0.96324578,113960.0,113950.0,0.0447]
[1757516374487,1.15821912,113960.0,113950.0,0.02167]
[1757516374793,1.17894141,113960.0,113950.0,0.00877]
[1757516374993,1.17894141,113960.0,113940.0,0.0129]
[1757516375192,1.53056578,113950.0,113940.0,0.0129]
[1757516375397,1.55128807,113950.0,113940.0,0.0129]
[1757516377793,1.55128807,113950.0,113940.0,0.03593]
[1757516378188,1.55128807,113950.0,113940.0,0.0129]
[1757516378587,1.55128807,113950.0,113940.0,0.0139]
[1757516379388,0.53552289,113950.0,113940.0,0.03585]
[1757516379593,1.35580289,113950.0,113940.0,0.03585]
[1757516379890,0.71024578,113950.0,113940.0,0.03585]
[1757516380194,1.53052578,113950.0,113940.0,0.03585]
[1757516380590,1.35580289,113950.0,113940.0,0.03585]
[1757516381795,0.3608,113950.0,113940.0,0.03585]
[1757516381986,1.35580289,113950.0,113940.0,0.03585]
[1757516383196,1.18108,113950.0,113940.0,0.03585]
[1757516383591,1.35580289,113950.0,113940.0,0.03585]
[1757516384597,1.35576289,113950.0,113940.0,0.03585]
[1757516385594,1.35572289,113950.0,113940.0,0.21057289]
[1757516385788,0.3608,113950.0,113940.0,0.38529578]
[1757516385990,0.3608,113950.0,113940.0,0.63529578]
[1757516388595,0.38105045,113960.0,113950.0,0.01322]
[1757516388896,0.3608,113970.0,113960.0,0.03517]
[1757516389087,0.3608,113970.0,113960.0,0.38461578]
[1757516389398,0.56504106,113980.0,113970.0,0.03517]
[1757516389698,0.5649214,113980.0,113970.0,0.03517]
[1757516389899,0.5649214,113980.0,113970.0,0.20989289]
[1757516390194,0.5442769,113980.0,113970.0,0.20989289]
[1757516390496,0.71899979,113980.0,113970.0,0.03517]
[1757516390697,0.36955401,113980.0,113970.0,0.03517]
[1757516390896,0.71899979,113980.0,113970.0,0.03517]
[1757516392800,0.5442769,113980.0,113970.0,0.20989289]
[1757516393399,0.53552289,113980.0,113970.0,0.20989289]
[1757516393899,0.3608,113980.0,113970.0,0.20989289]
[1757516394097,0.3608,113980.0,113970.0,0.45989289]
[1757516394893,0.53552289,113980.0,113970.0,0.45989289]
[1757516396701,0.53552289,113980.0,113970.0,0.28517]
[1757516396895,0.53552289,113980.0,113970.0,0.45989289]
[1757516397599,0.3608,113980.0,113970.0,0.45989289]
[1757516398404,0.3608,113980.0,113970.0,0.28517]
[1757516398596,0.53552289,113980.0,113970.0,0.45989289]
[1757516399102,0.71024578,113980.0,113970.0,0.28517]
[1757516399306,0.71024578,113980.0,113970.0,0.45989289]
[1757516399307,0.53552289,113980.0,113970.0,0.45989289]
[1757516399895,0.3608,113980.0,113970.0,0.45989289]
[1757516400094,0.53552289,113980.0,113970.0,0.45989289]
[1757516402508,0.3608,113980.0,113970.0,0.45989289]
[1757516402818,0.53552289,113980.0,113970.0,0.45989289]
[1757516403615,0.3608,113980.0,113970.0,0.45989289]
[1757516403803,0.3608,113980.0,113970.0,0.20989289]
[1757516404003,0.3608,113990.0,113980.0,0.03517]
[1757516404310,0.3608,114000.0,113990.0,0.03517]
[1757516404509,0.53552289,114000.0,113990.0,0.20989289]
[1757516405003,0.3608,114000.0,113990.0,0.20989289]
[1757516405209,0.53552289,114000.0,113990.0,0.20989289]
[1757516406007,0.53752289,114000.0,113990.0,0.20989289]
[1757516406801,0.3628,114000.0,113990.0,0.20989289]
[1757516407306,0.3648,114000.0,113990.0,0.20989289]
[1757516408205,0.004,114000.0,113990.0,0.20989289]
[1757516408411,0.004,114000.0,113990.0,0.38461578]
[1757516409208,0.004,114000.0,113990.0,1.20417578]
[1757516409409,0.004,114000.0,113990.0,1.56497578]
[1757516409608,0.004,114000.0,113990.0,1.81497578]
[1757516409806,0.004,114000.0,113990.0,1.82391397]
[1757516410007,0.3608,114010.0,113990.0,1.91161717]
[1757516410206,0.3608,114010.0,114000.0,1.20494578]
[1757516410510,0.3608,114010.0,114000.0,1.20490578]
[1757516411506,0.3628,114010.0,114000.0,0.38538578]
[1757516411712,0.3628,114010.0,114000.0,1.20486578]
[1757516412215,0.3658,114010.0,114000.0,1.20486578]
[1757516414016,0.3658,114010.0,114000.0,1.27665475]
[1757516414317,0.005,114010.0,114000.0,1.27665475]
[1757516414515,0.005,114010.0,114000.0,1.63745475]
[1757516416011,0.3608,114030.0,114020.0,0.03594]
[1757516416217,0.53552289,114030.0,114020.0,0.21066289]
[1757516416410,0.53552289,114030.0,114020.0,0.03594]
[1757516416609,0.53552289,114030.0,114020.0,0.21066289]
[1757516417005,0.3608,114030.0,114020.0,0.21066289]
[1757516417210,0.53552289,114030.0,114020.0,0.21066289]
[1757516417410,0.5442669,114030.0,114020.0,0.21066289]
[1757516417712,0.5452669,114030.0,114020.0,0.21066289]
[1757516418417,0.53652289,114030.0,114020.0,0.21066289]
[1757516418618,0.3608,114030.0,114020.0,0.38638578]
[1757516418919,0.53552289,114030.0,114020.0,0.38838578]
[1757516419218,0.3608,114030.0,114020.0,0.38838578]
[1757516419811,0.53552289,114030.0,114020.0,0.38838578]
[1757516420215,0.53552289,114030.0,114020.0,0.21366289]
[1757516420608,0.53552289,114030.0,114020.0,0.38838578]
[1757516420815,0.53552289,114030.0,114020.0,0.21366289]
[1757516421415,0.3608,114030.0,114020.0,0.21366289]
[1757516421713,0.53552289,114030.0,114020.0,0.21366289]
[1757516421910,0.53552289,114030.0,114020.0,0.03894]
[1757516421911,0.3608,114030.0,114020.0,0.03894]
[1757516422217,0.3608,114030.0,114020.0,0.21366289]
[1757516422418,0.53552289,114030.0,114020.0,0.21366289]
[1757516424413,0.53552289,114030.0,114020.0,0.03894]
[1757516424414,0.71024578,114030.0,114020.0,0.03894]
[1757516424618,0.96024578,114030.0,114020.0,0.03894]
[1757516426218,0.98088407,114030.0,114020.0,0.03894]
[1757516426516,0.74781485,114030.0,114020.0,0.03894]
[1757516427316,0.74781485,114030.0,114020.0,0.01679]
[1757516427506,0.74781485,114030.0,114020.0,0.03894]
[1757516427708,0.74781485,114030.0,114020.0,0.01679]
[1757516428011,1.57165485,114030.0,114020.0,0.01679]
[1757516429421,1.45527829,114030.0,114020.0,0.01679]
[1757516429621,1.57165485,114030.0,114020.0,0.01679]
[1757516430111,1.57165485,114030.0,114020.0,0.03894]
[1757516431221,1.55101656,114030.0,114020.0,0.03894]
[1757516431419,1.57168641,114030.0,114020.0,0.03894]
[1757516433217,1.57168641,114030.0,114020.0,0.01679]
[1757516433218,1.68806297,114030.0,114020.0,0.01679]
[1757516433427,1.68806297,114030.0,114020.0,0.003]
[1757516433817,1.68806297,114030.0,114010.0,0.01379]
[1757516433818,1.7351599,114030.0,114010.0,0.01379]
[1757516434016,0.59355312,114020.0,114010.0,0.01379]
[1757516434218,0.61422297,114020.0,114010.0,0.01379]
[1757516435219,0.61422297,114020.0,114010.0,0.01479]
[1757516436027,0.61422297,114020.0,114010.0,0.01579]
[1757516436213,1.43686297,114020.0,114010.0,0.01579]
[1757516436723,0.38146985,114020.0,114010.0,0.03794]
[1757516436916,1.20410985,114020.0,114010.0,0.03794]
[1757516437118,1.43686297,114020.0,114010.0,0.03794]
[1757516437525,0.61422297,114020.0,114010.0,0.01579]
[1757516437824,1.43694297,114020.0,114010.0,0.01579]
[1757516438021,1.43694297,114020.0,114010.0,0.03694]
[1757516438416,1.43694297,114020.0,114010.0,0.01479]
[1757516440216,0.61422297,114020.0,114010.0,0.01479]
[1757516440416,0.61422297,114020.0,114010.0,0.03786]
[1757516440616,1.43638297,114020.0,114010.0,0.03786]
[1757516441525,0.38146985,114020.0,114010.0,0.40423656]
[1757516441729,0.49784641,114020.0,114010.0,0.40423656]
[1757516442417,0.49784641,114020.0,114010.0,0.28786]
[1757516443423,0.61422297,114020.0,114010.0,0.28786]
[1757516443625,0.61422297,114020.0,114010.0,0.03786]
[1757516444129,0.38146985,114020.0,114010.0,0.03786]
[1757516444325,0.61422297,114020.0,114010.0,0.03786]
[1757516444728,1.32000641,114020.0,114010.0,0.03786]
[1757516445815,0.49784641,114020.0,114010.0,0.03786]
[1757516446018,1.32044641,114020.0,114010.0,0.03786]
[1757516446725,0.38146985,114020.0,114010.0,0.40423656]
[1757516446928,0.3608,114020.0,114010.0,0.40423656]
[1757516447119,0.3608,114020.0,114010.0,0.28786]
[1757516447321,0.3608,114020.0,114010.0,0.40423656]
[1757516449629,0.3608,114020.0,114010.0,0.28786]
[1757516449926,0.47717656,114020.0,114010.0,0.28786]
[1757516450922,0.3608,114020.0,114010.0,0.28786]
[1757516451126,0.47717656,114020.0,114010.0,0.28786]
[1757516451325,0.3608,114020.0,114010.0,0.28786]
[1757516451727,0.47717656,114020.0,114010.0,0.28786]
[1757516451928,0.3608,114020.0,114010.0,0.28786]
[1757516452128,0.47717656,114020.0,114010.0,0.28786]
[1757516455025,0.47717656,114020.0,114010.0,1.28786]
[1757516456427,0.3608,114020.0,114010.0,1.40423656]
[1757516457035,0.3608,114020.0,114010.0,1.28786]
[1757516457228,0.3608,114020.0,114010.0,1.40423656]
[1757516458433,1.18268,114030.0,114020.0,0.03704]
[1757516458734,0.47717656,114030.0,114020.0,0.15341656]
[1757516459531,0.47817656,114030.0,114020.0,0.15341656]
[1757516459727,0.47917656,114030.0,114020.0,0.15341656]
[1757516460331,0.3628,114030.0,114020.0,0.26979312]
[1757516460831,0.3628,114030.0,114020.0,0.15341656]
[1757516461226,0.3618,114030.0,114020.0,0.15441656]
[1757516462235,0.3608,114030.0,114020.0,0.15541656]
[1757516462735,0.38142246,114040.0,114030.0,0.03704]
[1757516462934,0.38142246,114040.0,114030.0,0.15341656]
[1757516463744,0.47717656,114040.0,114030.0,0.17083836]
[1757516464737,0.48587748,114040.0,114030.0,0.17083836]
[1757516465242,0.48587748,114040.0,114030.0,0.0544618]
[1757516465543,0.36950092,114040.0,114030.0,0.17083836]
[1757516465743,0.48587748,114040.0,114030.0,0.17083836]
[1757516466444,0.3608,114040.0,114030.0,0.17083836]
[1757516467734,0.4859632,114040.0,114030.0,0.17083836]
[1757516467934,0.47717656,114040.0,114030.0,0.17083836]
[1757516468235,0.3608,114040.0,114030.0,0.17083836]
[1757516468537,0.3608,114040.0,114030.0,0.0544618]
[1757516468734,0.3608,114040.0,114030.0,0.17083836]
[1757516468935,0.36992313,114050.0,114040.0,0.01278]
[1757516469135,0.02980844,114050.0,114040.0,0.15137656]
[1757516469344,0.39060844,114050.0,114040.0,0.15137656]
[1757516469935,0.39060844,114050.0,114040.0,0.035]
[1757516470137,0.39160844,114050.0,114040.0,0.15137656]
[1757516470342,0.36222,114050.0,114040.0,0.15137656]
[1757516470644,0.00142,114050.0,114040.0,1.08939312]
[1757516470841,0.00242,114050.0,114040.0,0.035]
[1757516471041,0.36322,114050.0,114040.0,0.035]
[1757516471339,0.37192137,114050.0,114040.0,0.15137656]
[1757516472241,0.36322,114050.0,114040.0,0.15137656]
[1757516472546,0.36322,114050.0,114040.0,0.22109256]
[1757516473542,0.47959656,114050.0,114040.0,0.15137656]
[1757516473840,0.47959656,114050.0,114040.0,0.035]
[1757516474946,0.84597312,114050.0,114040.0,0.01278]
[1757516475146,1.67701386,114050.0,114040.0,0.01278]
[1757516475342,1.5606373,114050.0,114040.0,0.01278]
[1757516475538,1.67701386,114050.0,114040.0,0.01278]